[Event "The Allsvenskan 2024/25 Div II 5: SS Manhem III - Thunder Chess II"]
[Site "Goteborgs Schackcentrum, Vegatan 20, Gothenburg, Sweden"]
[Date "2024.11.17"]
[Round "1.1"]
[White "Nuoristo, Peter"]
[Black "Recktenwald, Christian"]
[Result "1-0"]
[TimeControl "90 minutes for 40 moves + 30 minutes for the rest of the game + 30 seconds per move from move one."]
[WhiteFideId "1712462"]
[BlackFideId "1728709"]
[WhiteElo "2072"]
[BlackElo "1868"]

1. d4 {[%clk 01:30:30]} {[%emt 00:36:04]} Nf6 {[%clk 01:30:43]} {[%emt
00:00:18]} 2. c4 {[%clk 01:31:07]} {[%emt 00:00:22]} e6 {[%clk 01:30:57]}
{[%emt 00:00:16]} 3. Nf3 {[%clk 01:30:45]} {[%emt 00:00:52]} c5 {[%clk
01:29:37]} {[%emt 00:01:49]} 4. d5 {[%clk 01:30:57]} {[%emt 00:00:19]} exd5
{[%clk 01:29:40]} {[%emt 00:00:27]} 5. cxd5 {[%clk 01:31:12]} {[%emt 00:00:15]}
g6 {[%clk 01:29:48]} {[%emt 00:00:22]} 6. Nc3 {[%clk 01:31:24]} {[%emt
00:00:17]} Bg7 {[%clk 01:29:15]} {[%emt 00:01:03]} 7. e4 {[%clk 01:27:12]}
{[%emt 00:04:43]} d6 {[%clk 01:23:47]} {[%emt 00:05:58]} 8. Bb5+ {[%clk
01:27:22]} {[%emt 00:00:20]} Nbd7 {[%clk 01:18:17]} {[%emt 00:06:00]} 9. a4
{[%clk 01:25:23]} {[%emt 00:02:28]} O-O {[%clk 01:17:52]} {[%emt 00:00:55]} 10.
O-O {[%clk 01:24:47]} {[%emt 00:01:07]} Re8 {[%clk 01:11:08]} {[%emt 00:07:14]}
11. Re1 {[%clk 01:24:01]} {[%emt 00:01:16]} a6 {[%clk 01:08:16]} {[%emt
00:03:22]} 12. Bf1 {[%clk 01:24:20]} {[%emt 00:00:10]} b6 {[%emt 00:15:55]} 13.
h3 {[%clk 01:20:57]} {[%emt 00:03:50]} Ra7 {[%clk 00:48:39]} {[%emt 00:04:46]}
14. Bf4 {[%clk 01:02:54]} {[%emt 00:18:32]} Nb8 {[%clk 00:48:38]} {[%emt
00:00:32]} 15. Bh2 {[%clk 00:53:14]} {[%emt 00:10:09]} Rae7 {[%clk 00:45:42]}
{[%emt 00:03:26]} 16. Nd2 {[%clk 00:46:53]} {[%emt 00:06:51]} Bb7 {[%clk
00:43:38]} {[%emt 00:02:34]} 17. Qb3 {[%clk 00:36:07]} {[%emt 00:11:17]} Bf8
{[%clk 00:29:49]} {[%emt 00:14:18]} 18. f3 {[%clk 00:27:57]} {[%emt 00:08:40]}
Ba8 {[%clk 00:28:12]} {[%emt 00:02:07]} 19. Nc4 {[%clk 00:18:23]} {[%emt
00:10:05]} Rb7 {[%clk 00:26:18]} {[%emt 00:02:24]} 20. Rad1 {[%clk 00:16:43]}
{[%emt 00:02:10]} b5 {[%clk 00:14:10]} {[%emt 00:12:38]} 21. axb5 {[%clk
00:17:04]} {[%emt 00:00:09]} axb5 {[%clk 00:14:12]} {[%emt 00:00:27]} 22. Nxb5
{[%clk 00:14:28]} {[%emt 00:03:06]} Qd7 {[%clk 00:13:26]} {[%emt 00:01:16]} 23.
Nca3 {[%clk 00:07:40]} {[%emt 00:07:19]} Na6 {[%clk 00:11:18]} {[%emt
00:02:37]} 24. Qc3 {[%clk 00:06:35]} {[%emt 00:01:35]} Qd8 {[%clk 00:07:50]}
{[%emt 00:03:58]} 25. Nxd6 {[%clk 00:02:49]} {[%emt 00:04:16]} Bxd6 {[%clk
00:07:37]} {[%emt 00:00:43]} 26. Bxd6 {[%clk 00:03:14]} {[%emt 00:00:05]} Qxd6
{[%clk 00:05:59]} {[%emt 00:02:08]} 27. e5 {[%clk 00:03:36]} {[%emt 00:00:08]}
Qb6 {[%clk 00:04:59]} {[%emt 00:01:30]} 28. exf6 {[%clk 00:03:38]} {[%emt
00:00:29]} Rbb8 {[%clk 00:03:52]} {[%emt 00:01:37]} 29. Nc4 {[%clk 00:03:32]}
{[%emt 00:00:36]} Qd8 {[%clk 00:02:55]} {[%emt 00:01:27]} 30. d6 {[%emt
00:03:53]} Re6 {[%clk 00:01:27]} 31. Rxe6 {[%clk 00:02:02]} {[%emt 00:00:34]}
fxe6 {[%clk 00:01:55]} {[%emt 00:00:02]} 32. f7+ {[%clk 00:01:50]} {[%emt
00:00:41]} Kxf7 {[%clk 00:02:08]} {[%emt 00:00:17]} 33. Ne5+ {[%clk 00:02:13]}
{[%emt 00:00:07]} Kg8 {[%clk 00:01:26]} {[%emt 00:01:12]} 34. Bxa6 {[%clk
00:02:34]} {[%emt 00:00:10]} 1-0

[Event "The Allsvenskan 2024/25 Div II 5: SS Manhem III - Thunder Chess II"]
[Site "Goteborgs Schackcentrum, Vegatan 20, Gothenburg, Sweden"]
[Date "2024.11.17"]
[Round "1.2"]
[White "Andreasson, Vincent"]
[Black "Alharash, Feras"]
[Result "1-0"]
[TimeControl "90 minutes for 40 moves + 30 minutes for the rest of the game + 30 seconds per move from move one."]
[WhiteFideId "1721321"]
[BlackFideId "7604645"]
[WhiteElo "1988"]
[BlackElo "1917"]

1. d4 {[%clk 01:30:57]} {[%emt 00:00:02]} d5 {[%clk 01:30:43]} {[%emt
00:00:17]} 2. Nf3 {[%clk 01:31:19]} {[%emt 00:00:08]} e6 {[%clk 01:30:37]}
{[%emt 00:00:36]} 3. c4 {[%clk 01:31:10]} {[%emt 00:00:40]} a6 {[%clk
01:30:17]} {[%emt 00:00:50]} 4. Qc2 {[%clk 01:29:14]} {[%emt 00:02:26]} dxc4
{[%clk 01:30:09]} {[%emt 00:00:38]} 5. Qxc4 {[%clk 01:28:07]} {[%emt 00:01:37]}
b5 {[%clk 01:30:06]} {[%emt 00:00:33]} 6. Qc2 {[%clk 01:27:56]} {[%emt
00:00:41]} Bb7 {[%clk 01:29:51]} {[%emt 00:00:44]} 7. Nbd2 {[%clk 01:23:02]}
{[%emt 00:05:24]} Nc6 {[%clk 01:26:55]} {[%emt 00:03:26]} 8. e3 {[%clk
01:23:22]} {[%emt 00:00:10]} Nf6 {[%clk 01:26:59]} {[%emt 00:00:27]} 9. Be2
{[%clk 01:20:16]} {[%emt 00:03:35]} Nb4 {[%clk 01:26:03]} {[%emt 00:01:26]} 10.
Qb1 {[%clk 01:18:58]} {[%emt 00:01:48]} c5 {[%clk 01:25:38]} {[%emt 00:00:55]}
11. a3 {[%clk 01:13:43]} {[%emt 00:05:46]} Nc6 {[%clk 01:15:52]} {[%emt
00:10:15]} 12. dxc5 {[%clk 01:12:03]} {[%emt 00:02:10]} Bxc5 {[%clk 01:13:47]}
{[%emt 00:02:36]} 13. O-O {[%clk 01:10:39]} {[%emt 00:01:54]} O-O {[%clk
01:13:36]} {[%emt 00:00:40]} 14. Rd1 {[%clk 01:08:02]} {[%emt 00:03:07]} Qe7
{[%clk 01:13:06]} {[%emt 00:01:00]} 15. b4 {[%clk 01:06:14]} {[%emt 00:02:19]}
Bb6 {[%clk 01:11:38]} {[%emt 00:01:57]} 16. Bb2 {[%clk 01:05:15]} {[%emt
00:01:29]} Rac8 {[%clk 01:10:56]} {[%emt 00:01:12]} 17. Ng5 {[%clk 00:59:41]}
{[%emt 00:06:05]} e5 {[%clk 01:06:29]} {[%emt 00:04:56]} 18. Qf5 {[%clk
00:49:00]} {[%emt 00:11:11]} Qd7 {[%clk 00:58:17]} {[%emt 00:08:41]} 19. Qxd7
{[%clk 00:46:22]} {[%emt 00:03:09]} Nxd7 {[%clk 00:58:39]} {[%emt 00:00:08]} 20.
Nc4 {[%clk 00:44:24]} {[%emt 00:02:28]} Rc7 {[%clk 00:56:08]} {[%emt 00:03:01]}
21. Nxb6 {[%clk 00:38:20]} {[%emt 00:06:34]} Nxb6 {[%clk 00:56:27]} {[%emt
00:00:12]} 22. Rac1 {[%clk 00:38:20]} {[%emt 00:00:30]} Re7 {[%clk 00:38:59]}
{[%emt 00:17:56]} 23. Ne4 {[%clk 00:33:24]} {[%emt 00:05:27]} Nd4 {[%clk
00:31:43]} {[%emt 00:07:46]} 24. exd4 {[%clk 00:32:36]} {[%emt 00:01:18]} Bxe4
{[%clk 00:32:07]} {[%emt 00:00:06]} 25. dxe5 {[%clk 00:31:32]} {[%emt
00:01:35]} Bd5 {[%clk 00:30:47]} {[%emt 00:01:50]} 26. Bd4 {[%clk 00:31:11]}
{[%emt 00:00:50]} Bc4 {[%clk 00:30:23]} {[%emt 00:00:54]} 27. Bg4 {[%clk
00:20:48]} {[%emt 00:10:53]} Rb7 {[%clk 00:18:33]} {[%emt 00:12:19]} 28. Bc5
{[%clk 00:16:30]} {[%emt 00:04:49]} Re8 {[%clk 00:11:56]} {[%emt 00:07:07]} 29.
Rd6 {[%clk 00:15:28]} {[%emt 00:01:32]} Na4 {[%clk 00:10:57]} {[%emt 00:01:29]}
30. Bd4 {[%clk 00:15:54]} {[%emt 00:00:04]} Be6 {[%clk 00:07:13]} {[%emt
00:04:14]} 31. Bxe6 {[%clk 00:13:33]} {[%emt 00:02:51]} fxe6 {[%clk 00:07:35]}
{[%emt 00:00:07]} 32. Rxa6 {[%clk 00:13:18]} {[%emt 00:00:45]} Rd7 {[%clk
00:07:55]} {[%emt 00:00:10]} 33. Rd6 {[%clk 00:12:52]} {[%emt 00:00:57]} Rxd6
{[%clk 00:08:00]} {[%emt 00:00:26]} 34. exd6 {[%clk 00:13:21]} Rd8 {[%clk
00:08:18]} {[%emt 00:00:09]} 35. Rc6 {[%clk 00:13:11]} {[%emt 00:00:42]} Rd7
{[%clk 00:05:37]} {[%emt 00:03:11]} 36. f4 {[%clk 00:13:15]} {[%emt 00:00:25]}
Kf7 {[%clk 00:05:47]} {[%emt 00:00:20]} 37. Kf2 {[%clk 00:12:11]} {[%emt
00:01:35]} 1-0

[Event "The Allsvenskan 2024/25 Div II 5: SS Manhem III - Thunder Chess II"]
[Site "Goteborgs Schackcentrum, Vegatan 20, Gothenburg, Sweden"]
[Date "2024.11.17"]
[Round "1.3"]
[White "Bergre, Joachim"]
[Black "Ahlqvist, Jonas"]
[Result "1-0"]
[TimeControl "90 minutes for 40 moves + 30 minutes for the rest of the game + 30 seconds per move from move one."]
[WhiteFideId "1704893"]
[BlackFideId "1721330"]
[WhiteElo "1966"]
[BlackElo "1867"]

1. Nf3 {[%clk 01:30:11]} {[%emt 00:00:49]} Nc6 {[%clk 01:30:19]} {[%emt
00:00:41]} 2. c4 {[%clk 01:29:44]} {[%emt 00:00:57]} e5 {[%clk 01:27:14]}
{[%emt 00:03:36]} 3. Nc3 {[%clk 01:28:38]} {[%emt 00:01:35]} Nf6 {[%clk
01:26:54]} {[%emt 00:00:50]} 4. d3 {[%clk 01:27:08]} {[%emt 00:01:59]} Be7
{[%clk 01:22:49]} {[%emt 00:04:37]} 5. g3 {[%clk 01:25:49]} {[%emt 00:01:47]}
d6 {[%clk 01:21:24]} {[%emt 00:01:56]} 6. Bg2 {[%clk 01:25:00]} {[%emt
00:01:24]} O-O {[%clk 01:21:44]} {[%emt 00:00:22]} 7. O-O {[%clk 01:25:15]} Bf5
{[%clk 01:18:15]} {[%emt 00:03:56]} 8. a3 {[%clk 01:18:55]} {[%emt 00:06:50]}
Qd7 {[%clk 01:14:27]} {[%emt 00:04:19]} 9. Re1 {[%clk 01:13:10]} {[%emt
00:06:15]} Bh3 {[%clk 00:59:39]} {[%emt 00:15:19]} 10. Bh1 {[%clk 01:10:26]}
{[%emt 00:03:13]} h6 {[%clk 01:00:06]} {[%emt 00:00:04]} 11. b4 {[%clk
01:06:00]} {[%emt 00:04:55]} a6 {[%clk 00:59:15]} {[%emt 00:01:21]} 12. Bb2
{[%clk 01:03:00]} {[%emt 00:03:29]} Qf5 {[%clk 00:47:02]} {[%emt 00:12:43]} 13.
Nd5 {[%clk 00:54:45]} {[%emt 00:08:46]} Bd8 {[%clk 00:38:36]} {[%emt 00:08:56]}
14. Rc1 {[%clk 00:45:22]} {[%emt 00:09:53]} Ng4 {[%clk 00:35:17]} {[%emt
00:03:49]} 15. Ne3 {[%clk 00:28:49]} {[%emt 00:17:02]} Nxe3 {[%clk 00:28:59]}
{[%emt 00:06:49]} 16. fxe3 {[%clk 00:25:50]} {[%emt 00:03:29]} Re8 {[%clk
00:29:04]} {[%emt 00:00:26]} 17. e4 {[%clk 00:23:28]} {[%emt 00:02:52]} Qg4
{[%clk 00:24:09]} {[%emt 00:05:24]} 18. Bg2 {[%clk 00:23:03]} {[%emt 00:00:55]}
Re6 {[%clk 00:22:16]} {[%emt 00:02:23]} 19. Rf1 {[%clk 00:20:30]} {[%emt
00:03:03]} Ne7 {[%clk 00:19:31]} {[%emt 00:03:15]} 20. Nh4 {[%clk 00:16:29]}
{[%emt 00:04:30]} Bxg2 {[%clk 00:17:22]} {[%emt 00:02:39]} 21. Kxg2 {[%clk
00:16:21]} {[%emt 00:00:38]} Ng6 {[%clk 00:17:43]} {[%emt 00:00:09]} 22. Nxg6
{[%clk 00:15:47]} {[%emt 00:01:05]} Rxg6 {[%clk 00:17:58]} {[%emt 00:00:16]} 23.
e3 {[%clk 00:15:33]} {[%emt 00:00:43]} Qg5 {[%clk 00:16:59]} {[%emt 00:01:29]}
24. Qe2 {[%clk 00:15:28]} {[%emt 00:00:35]} h5 {[%clk 00:14:29]} {[%emt
00:03:00]} 25. Rf5 {[%clk 00:11:53]} {[%emt 00:04:05]} Qg4 {[%clk 00:13:48]}
{[%emt 00:01:11]} 26. Qf2 {[%clk 00:11:47]} {[%emt 00:00:36]} Bf6 {[%clk
00:13:39]} {[%emt 00:00:39]} 27. h3 {[%clk 00:11:24]} {[%emt 00:00:53]} Qh4
{[%clk 00:06:51]} {[%emt 00:07:18]} 28. Kh2 {[%clk 00:11:11]} {[%emt 00:00:42]}
1-0

[Event "The Allsvenskan 2024/25 Div II 5: SS Manhem III - Thunder Chess II"]
[Site "Goteborgs Schackcentrum, Vegatan 20, Gothenburg, Sweden"]
[Date "2024.11.17"]
[Round "1.4"]
[White "Almemo, Fredrik"]
[Black "Knutsson, Anders"]
[Result "1/2-1/2"]
[TimeControl "90 minutes for 40 moves + 30 minutes for the rest of the game + 30 seconds per move from move one."]
[WhiteFideId "1721186"]
[BlackFideId "1789198"]
[WhiteElo "1896"]
[BlackElo "1870"]

1. d4 {[%clk 01:30:58]} {[%emt 00:00:01]} Nf6 {[%clk 01:26:22]} {[%emt
00:04:35]} 2. c4 {[%clk 01:30:42]} {[%emt 00:00:49]} d6 {[%clk 01:26:10]}
{[%emt 00:00:42]} 3. Nf3 {[%clk 01:30:51]} {[%emt 00:00:21]} Nbd7 {[%clk
01:26:23]} {[%emt 00:00:17]} 4. Nc3 {[%clk 01:27:17]} {[%emt 00:04:03]} e5
{[%clk 01:26:06]} {[%emt 00:00:48]} 5. d5 {[%clk 01:22:24]} {[%emt 00:05:23]}
Be7 {[%clk 01:24:16]} {[%emt 00:02:19]} 6. g3 {[%clk 01:20:24]} {[%emt
00:02:31]} O-O {[%clk 01:23:40]} {[%emt 00:01:06]} 7. Bg2 {[%clk 01:20:23]}
{[%emt 00:00:32]} c6 {[%clk 01:22:44]} {[%emt 00:01:25]} 8. O-O {[%clk
01:16:33]} {[%emt 00:04:20]} a5 {[%clk 01:14:02]} {[%emt 00:09:12]} 9. b3
{[%clk 01:14:05]} {[%emt 00:02:58]} Nc5 {[%clk 01:07:28]} {[%emt 00:07:04]} 10.
dxc6 {[%clk 00:58:11]} {[%emt 00:16:24]} bxc6 {[%clk 01:07:30]} {[%emt
00:00:27]} 11. Be3 {[%clk 00:56:45]} {[%emt 00:01:57]} e4 {[%clk 01:05:10]}
{[%emt 00:02:51]} 12. Nd2 {[%clk 00:55:01]} {[%emt 00:02:14]} d5 {[%clk
01:04:40]} {[%emt 00:00:59]} 13. cxd5 {[%clk 00:53:00]} {[%emt 00:02:32]} cxd5
{[%clk 01:04:46]} {[%emt 00:00:23]} 14. Bxc5 {[%clk 00:51:11]} {[%emt
00:02:19]} Bxc5 {[%clk 01:05:05]} {[%emt 00:00:10]} 15. e3 {[%clk 00:47:44]}
{[%emt 00:03:58]} Bg4 {[%clk 01:02:08]} {[%emt 00:03:27]} 16. Qc2 {[%clk
00:46:54]} {[%emt 00:01:21]} Rc8 {[%clk 01:00:09]} {[%emt 00:02:28]} 17. h3
{[%clk 00:45:13]} {[%emt 00:02:12]} Bb4 {[%clk 00:53:57]} {[%emt 00:06:41]} 18.
hxg4 {[%clk 00:44:07]} {[%emt 00:01:37]} Rxc3 {[%clk 00:53:45]} {[%emt
00:00:41]} 19. Qb2 {[%clk 00:43:39]} {[%emt 00:00:58]} Rd3 {[%clk 00:52:06]}
{[%emt 00:02:08]} 20. Rfd1 {[%clk 00:43:05]} {[%emt 00:01:05]} Bc3 {[%clk
00:51:58]} {[%emt 00:00:38]} 21. Qb1 {[%clk 00:41:30]} {[%emt 00:02:06]} Rxd2
{[%clk 00:51:14]} {[%emt 00:01:14]} 22. Rxd2 {[%clk 00:40:48]} {[%emt
00:01:12]} Bxd2 {[%clk 00:51:37]} {[%emt 00:00:07]} 23. g5 {[%clk 00:41:08]}
{[%emt 00:00:10]} Ng4 {[%clk 00:51:18]} {[%emt 00:00:48]} 24. Qd1 {[%clk
00:41:24]} {[%emt 00:00:15]} Nxe3 {[%clk 00:45:51]} {[%emt 00:05:56]} 25. Qxd2
{[%clk 00:41:08]} {[%emt 00:00:47]} Nxg2 {[%clk 00:45:53]} {[%emt 00:00:27]} 26.
Kxg2 {[%clk 00:41:36]} {[%emt 00:00:02]} Re8 {[%clk 00:40:50]} {[%emt
00:05:33]} 27. Rc1 {[%clk 00:38:28]} {[%emt 00:03:38]} d4 {[%clk 00:37:19]}
{[%emt 00:04:01]} 28. Rc5 {[%clk 00:25:23]} {[%emt 00:13:35]} e3 {[%clk
00:31:14]} {[%emt 00:06:35]} 29. fxe3 {[%clk 00:24:50]} {[%emt 00:01:03]} Qa8+
{[%clk 00:31:26]} {[%emt 00:00:17]} 30. e4 {[%clk 00:18:17]} {[%emt 00:07:05]}
Rxe4 {[%clk 00:25:02]} {[%emt 00:06:54]} 31. Kh3 {[%clk 00:09:24]} {[%emt
00:09:23]} Qe8 {[%clk 00:21:10]} {[%emt 00:04:21]} 32. Qxa5 {[%clk 00:06:26]}
{[%emt 00:03:29]} Qe6+ {[%clk 00:21:14]} {[%emt 00:00:25]} 33. Rf5 {[%clk
00:04:11]} {[%emt 00:02:45]} h6 {[%clk 00:12:34]} {[%emt 00:09:10]} 34. Qd5
{[%clk 00:03:41]} {[%emt 00:01:00]} d3 {[%clk 00:10:29]} {[%emt 00:02:35]} 35.
Qxe6 {[%clk 00:01:08]} {[%emt 00:03:03]} fxe6 {[%clk 00:10:45]} {[%emt
00:00:14]} 36. Rf1 {[%clk 00:01:37]} {[%emt 00:00:01]} e5 {[%clk 00:07:31]}
{[%emt 00:03:44]} 37. Rd1 {[%clk 00:01:20]} {[%emt 00:00:48]} Rd4 {[%clk
00:07:53]} {[%emt 00:00:07]} 38. Kg2 {[%clk 00:01:45]} {[%emt 00:00:06]} e4
{[%clk 00:05:22]} {[%emt 00:03:00]} 39. Kf2 {[%clk 00:01:58]} {[%emt 00:00:18]}
Rd5 {[%clk 00:04:13]} {[%emt 00:01:38]} 40. gxh6 {[%clk 00:00:55]} {[%emt
00:01:33]} gxh6 {[%clk 00:04:31]} {[%emt 00:00:12]} 41. Ke3 {[%clk 00:00:45]}
{[%emt 00:00:40]} Re5 {[%clk 00:03:36]} {[%emt 00:01:25]} 42. a4 {[%clk
00:29:10]} {[%emt 00:02:05]} Kf7 {[%clk 00:33:54]} {[%emt 00:00:11]} 43. b4
{[%clk 00:27:07]} {[%emt 00:02:35]} Ke6 {[%clk 00:34:03]} {[%emt 00:00:20]} 44.
Rc1 {[%clk 00:25:57]} {[%emt 00:01:40]} Kd6 {[%clk 00:33:50]} {[%emt 00:00:43]}
45. Rc8 {[%clk 00:19:25]} {[%emt 00:07:02]} 1/2-1/2

[Event "The Allsvenskan 2024/25 Div II 5: SS Manhem III - Thunder Chess II"]
[Site "Goteborgs Schackcentrum, Vegatan 20, Gothenburg, Sweden"]
[Date "2024.11.17"]
[Round "1.5"]
[White "Christoforidis, Nicolas"]
[Black "Freed, Markus"]
[Result "0-1"]
[TimeControl "90 minutes for 40 moves + 30 minutes for the rest of the game + 30 seconds per move from move one."]
[WhiteFideId "1789180"]
[BlackFideId "1717944"]
[WhiteElo "1892"]
[BlackElo "1761"]

1. e4 {[%emt 00:27:50]} c5 {[%emt 00:00:07]} 2. Nf3 {[%clk 01:29:54]} {[%emt
00:00:58]} e6 {[%clk 01:30:52]} {[%emt 00:00:09]} 3. d4 {[%clk 01:29:23]}
{[%emt 00:01:01]} cxd4 {[%clk 01:31:14]} {[%emt 00:00:08]} 4. Nxd4 {[%clk
01:29:47]} {[%emt 00:00:06]} Nc6 {[%clk 01:31:37]} {[%emt 00:00:07]} 5. Nb3
{[%clk 01:29:16]} {[%emt 00:01:00]} Nf6 {[%clk 01:30:12]} {[%emt 00:01:55]} 6.
Bd3 {[%clk 01:19:57]} {[%emt 00:09:49]} Qc7 {[%clk 01:28:31]} {[%emt 00:02:11]}
7. O-O {[%clk 01:14:43]} {[%emt 00:05:44]} a6 {[%clk 01:26:55]} {[%emt
00:02:06]} 8. Be3 {[%clk 01:08:50]} {[%emt 00:06:22]} Nb4 {[%clk 01:22:55]}
{[%emt 00:04:31]} 9. Nc3 {[%clk 01:06:15]} {[%emt 00:03:05]} b5 {[%clk
01:17:16]} {[%emt 00:06:09]} 10. a3 {[%clk 01:02:02]} {[%emt 00:04:43]} Nc6
{[%clk 01:11:42]} {[%emt 00:06:04]} 11. f4 {[%clk 00:55:45]} {[%emt 00:06:47]}
d6 {[%clk 01:10:59]} {[%emt 00:01:14]} 12. Be2 {[%clk 00:51:07]} {[%emt
00:05:08]} Bb7 {[%clk 01:09:37]} {[%emt 00:01:51]} 13. Bf3 {[%clk 00:48:22]}
{[%emt 00:03:14]} Rc8 {[%clk 01:08:24]} {[%emt 00:01:44]} 14. Qd2 {[%clk
00:40:04]} {[%emt 00:08:47]} Be7 {[%clk 01:06:37]} {[%emt 00:02:18]} 15. Rad1
{[%clk 00:38:08]} {[%emt 00:02:25]} O-O {[%clk 01:05:26]} {[%emt 00:01:42]} 16.
Qf2 {[%clk 00:36:12]} {[%emt 00:02:25]} b4 {[%clk 01:00:59]} {[%emt 00:04:58]}
17. Bb6 {[%clk 00:33:26]} {[%emt 00:03:16]} Qb8 {[%clk 01:00:16]} {[%emt
00:01:14]} 18. axb4 {[%clk 00:32:57]} {[%emt 00:00:59]} Nxb4 {[%clk 00:54:56]}
{[%emt 00:05:50]} 19. Rfe1 {[%clk 00:27:22]} {[%emt 00:06:03]} Ba8 {[%clk
00:52:36]} {[%emt 00:02:51]} 20. Be3 {[%clk 00:25:02]} {[%emt 00:02:50]} d5
{[%clk 00:47:26]} {[%emt 00:05:40]} 21. e5 {[%clk 00:19:10]} {[%emt 00:06:22]}
Ne4 {[%clk 00:45:26]} {[%emt 00:02:31]} 22. Bxe4 {[%clk 00:19:30]} {[%emt
00:00:10]} dxe4 {[%clk 00:45:45]} {[%emt 00:00:10]} 23. Kh1 {[%clk 00:15:43]}
{[%emt 00:04:18]} Bh4 {[%clk 00:44:34]} {[%emt 00:01:40]} 24. g3 {[%clk
00:15:04]} {[%emt 00:01:10]} Be7 {[%clk 00:44:47]} {[%emt 00:00:15]} 25. h3
{[%clk 00:14:05]} {[%emt 00:01:30]} h6 {[%clk 00:44:04]} {[%emt 00:01:14]} 26.
Kh2 {[%clk 00:14:30]} {[%emt 00:00:05]} Rc7 {[%clk 00:42:47]} {[%emt 00:01:46]}
27. Nc5 {[%clk 00:13:40]} {[%emt 00:01:19]} Nxc2 {[%clk 00:38:28]} {[%emt
00:04:50]} 28. Nxa6 {[%clk 00:13:17]} {[%emt 00:00:54]} Qb7 {[%clk 00:38:34]}
{[%emt 00:00:23]} 29. Qxc2 {[%clk 00:13:06]} {[%emt 00:00:41]} Qxa6 {[%clk
00:38:30]} {[%emt 00:00:35]} 30. Rd2 {[%clk 00:10:50]} {[%emt 00:02:45]} Qc4
{[%clk 00:32:06]} {[%emt 00:06:54]} 31. Rd4 {[%clk 00:07:52]} {[%emt 00:03:28]}
Qc6 {[%clk 00:27:38]} {[%emt 00:04:58]} 32. Qe2 {[%clk 00:07:50]} {[%emt
00:00:31]} Rb8 {[%clk 00:25:07]} {[%emt 00:03:01]} 33. Nxe4 {[%clk 00:03:55]}
{[%emt 00:04:26]} Qc2 {[%clk 00:23:38]} {[%emt 00:01:58]} 34. Bc1 {[%clk
00:03:42]} {[%emt 00:00:44]} Qxe2+ {[%clk 00:22:37]} {[%emt 00:01:32]} 35. Rxe2
{[%clk 00:04:05]} {[%emt 00:00:07]} Rxc1 {[%clk 00:22:49]} {[%emt 00:00:17]} 36.
Rd7 {[%clk 00:03:48]} {[%emt 00:00:47]} Bxe4 {[%clk 00:21:52]} {[%emt
00:01:27]} 0-1

[Event "The Allsvenskan 2024/25 Div II 5: SS Manhem III - Thunder Chess II"]
[Site "Goteborgs Schackcentrum, Vegatan 20, Gothenburg, Sweden"]
[Date "2024.11.17"]
[Round "1.6"]
[White "Jakubec, Pavol"]
[Black "Alwaeli, Looay"]
[Result "1/2-1/2"]
[TimeControl "90 minutes for 40 moves + 30 minutes for the rest of the game + 30 seconds per move from move one."]
[WhiteFideId "1509292"]
[BlackFideId "4805127"]
[WhiteElo "1742"]
[BlackElo "1864"]

1. d4 {[%emt 00:02:09]} Nf6 {[%clk 01:27:16]} {[%emt 00:01:37]} 2. c4 {[%clk
01:31:19]} {[%emt 00:00:09]} g6 {[%clk 01:27:39]} {[%emt 00:00:08]} 3. Nc3
{[%clk 01:31:35]} {[%emt 00:00:12]} Bg7 {[%clk 01:28:08]} 4. e4 {[%clk
01:31:49]} {[%emt 00:00:18]} d6 {[%clk 01:28:34]} {[%emt 00:00:03]} 5. f3
{[%clk 01:32:07]} {[%emt 00:00:12]} O-O {[%clk 01:27:57]} {[%emt 00:01:07]} 6.
Be3 {[%clk 01:32:11]} {[%emt 00:00:26]} e5 {[%clk 01:27:55]} {[%emt 00:00:33]}
7. d5 {[%clk 01:32:33]} {[%emt 00:00:08]} a5 {[%clk 01:27:27]} {[%emt
00:00:57]} 8. Bd3 {[%clk 01:32:17]} {[%emt 00:00:46]} Na6 {[%clk 01:20:30]}
{[%emt 00:07:27]} 9. Rb1 {[%clk 01:30:20]} {[%emt 00:02:27]} Bd7 {[%clk
01:20:08]} {[%emt 00:00:52]} 10. Nge2 {[%clk 01:29:27]} {[%emt 00:01:26]} Qe7
{[%clk 01:16:26]} {[%emt 00:04:09]} 11. Bc2 {[%clk 01:26:45]} {[%emt 00:03:12]}
c6 {[%clk 01:11:30]} {[%emt 00:05:25]} 12. Bb6 {[%clk 01:19:15]} {[%emt
00:08:01]} cxd5 {[%clk 01:09:32]} {[%emt 00:02:27]} 13. cxd5 {[%clk 01:16:26]}
{[%emt 00:03:20]} Nb8 {[%clk 01:05:28]} {[%emt 00:04:33]} 14. Bd3 {[%clk
01:10:22]} {[%emt 00:06:36]} Rc8 {[%clk 01:02:39]} {[%emt 00:03:18]} 15. O-O
{[%clk 01:08:17]} {[%emt 00:02:35]} Nh5 {[%clk 00:54:19]} {[%emt 00:08:50]} 16.
Qe1 {[%clk 00:55:18]} {[%emt 00:13:30]} Nf4 {[%clk 00:52:45]} {[%emt 00:02:04]}
17. Nxf4 {[%clk 00:54:55]} {[%emt 00:00:53]} exf4 {[%clk 00:53:06]} {[%emt
00:00:09]} 18. Ne2 {[%clk 00:55:08]} {[%emt 00:00:17]} Ba4 {[%clk 00:52:27]}
{[%emt 00:01:04]} 19. Nxf4 {[%clk 00:51:45]} {[%emt 00:03:57]} Nd7 {[%clk
00:49:06]} {[%emt 00:03:51]} 20. Bf2 {[%clk 00:45:17]} {[%emt 00:06:59]} Bc2
{[%clk 00:47:02]} {[%emt 00:02:32]} 21. Rc1 {[%clk 00:43:39]} {[%emt 00:02:09]}
Bxd3 {[%clk 00:42:22]} {[%emt 00:05:09]} 22. Nxd3 {[%clk 00:44:04]} {[%emt
00:00:06]} a4 {[%clk 00:41:26]} {[%emt 00:01:26]} 23. Qb4 {[%clk 00:43:04]}
{[%emt 00:01:29]} Ne5 {[%clk 00:39:27]} {[%emt 00:02:30]} 24. Nxe5 {[%clk
00:41:37]} {[%emt 00:01:57]} Bxe5 {[%clk 00:38:12]} {[%emt 00:01:45]} 25. Bd4
{[%clk 00:42:04]} {[%emt 00:00:03]} Rxc1 {[%clk 00:37:42]} {[%emt 00:01:01]} 26.
Rxc1 {[%clk 00:42:26]} {[%emt 00:00:08]} Bf4 {[%clk 00:38:02]} {[%emt
00:00:10]} 27. Rc2 {[%clk 00:39:13]} {[%emt 00:03:43]} 1/2-1/2